Cogmind - Beta 13 @@@ ROGUE MODE // 2024.03.06 @ 15:04:28 Player: TheSlyFawkes Result: Self-destructed Performance ------------- Evolutions (1) 500 Regions Visited (2) 400 Robots Destroyed (36) 180 Value Destroyed (859) 859 Prototype IDs (2) 40 Alien Tech Used (0) 0 Bonus (0) 0 TOTAL SCORE: 1979 Bonus ------- None Cogmind --------- Core Integrity 268/400 Matter 300/300 Energy 100/100 System Corruption 2% Temperature Cool (0) Movement Treading (160) Location -9/Materials Parts ------- > --- POWER (1) -------- (None) > --- PROPULSION (2) --- Light Treads Light Treads > --- UTILITY (3) ------ Large Storage Unit > --- WEAPON (3) ------- Shotgun Improved Assault Rifle Maul > --- INVENTORY (15) --- Ion Engine Heavy Ion Engine Light Treads Light Treads Large Storage Unit Improved Medium Laser Light Assault Rifle Light Assault Rifle Improved Assault Rifle Peak State ------------ > --- POWER ------------ Heavy Ion Engine > --- PROPULSION ------- Light Treads Light Treads > --- UTILITY ---------- Large Storage Unit Sensor Array Medium Armor Plating > --- WEAPON ----------- EM Pulse Gun Light Assault Rifle Grenade Launcher > --- INVENTORY -------- Ion Engine Light Treads Large Storage Unit Light Assault Rifle Light Assault Rifle Improved Assault Rifle Maul [Rating: 13] Favorites ----------- Power Light Ion Engine Engine Light Ion Engine Propulsion Light Treads Treads Light Treads Leg Aluminum Leg Wheel Compact Wheel Utility Sensor Array Device Sensor Array Storage Large Storage Unit Protection Medium Armor Plating Weapon Light Assault Rifle Energy Gun EM Pulse Gun Ballistic Gun Light Assault Rifle Launcher Grenade Launcher Impact Weapon Maul Build | -11 -10 -9 ------- Run | Yrd Mat Mat Slots Evolved 2 | . . 2 Power . | . . . Propulsion . | . . . Utility 1 | . . 1 Weapon 1 | . . 1 Parts Attached 29 | 6 13 10 Power 4 | 1 1 2 Engine 4 | 1 1 2 Core . | . . . Reactor . | . . . Propulsion 8 | 2 4 2 Treads 4 | . 2 2 Leg 2 | . 2 . Wheel 2 | 2 . . Hover . | . . . Flight . | . . . Utility 4 | 1 2 1 Device 1 | . 1 . Storage 2 | 1 1 . Processor . | . . . Hackware . | . . . Protection 1 | . . 1 Artifact . | . . . Weapon 13 | 2 6 5 Energy Gun 5 | 1 4 . Energy Cannon . | . . . Ballistic Gun 6 | 1 2 3 Ballistic Cannon . | . . . Launcher 1 | . . 1 Special Weapon . | . . . Impact Weapon 1 | . . 1 Slashing Weapon . | . . . Piercing Weapon . | . . . Special Melee Weapon . | . . . Unidentified Prototypes 2 | . . 2 Parts Lost 5 | . 2 3 Power . | . . . Propulsion 1 | . 1 . Utility 2 | . . 2 Weapon 2 | . 1 1 Highest Loss Streak 1 | . 1 1 To Critical Strikes . | . . . Average Slot Usage (%) 83 | . 85 81 Engine 4 | . 6 3 Treads 12 | . 1 22 Leg 5 | . 10 . Wheel 5 | . 11 . Device 9 | . 13 5 Storage 12 | . 14 11 Protection 3 | . . 7 Energy Gun 10 | . 17 3 Ballistic Gun 14 | . 10 18 Launcher 3 | . . 6 Impact Weapon 2 | . . 4 Naked Turns . | . . . Heaviest Build 42 | 11 27 42 Greatest Support 40 | 32 40 40 Greatest Overweight (x) 1 | . . 1 Average Overweight (x) . | . . . Largest Inventory Capacity 15 | 8 15 15 Average Capacity 11 | 7 8 15 Most Carried 9 | 6 8 9 Average Carried 6 | 2 7 6 Final Capacity 15 | 8 15 15 Final Carried 9 | 7 6 9 Class Distribution -------------------- 70% | Mutant 15% | Skirmisher 13% | Tank Dominant Class ---------------- Mutant | -10/Materials Mutant | -9/Materials Resources | -11 -10 -9 ----------- Run | Yrd Mat Mat Matter Collected 592 | 220 182 190 Remotely . | . . . Salvage Created 1362 | . 484 878 Parts 67 | . 35 32 Haulers Intercepted 3 | . . 3 Recyclers Shooed 2 | . . 2 Parts Field Recycled . | . . . Retrieved Matter . | . . . Parts Self-Destructed . | . . . Prevented . | . . . Kills | -11 -10 -9 ------- Run | Yrd Mat Mat Combat Hostiles Destroyed 30 | . 17 13 Melee 3 | . . 3 Guns 25 | . 17 8 Classes Destroyed 5 | . 2 3 Hauler 3 | . . 3 Recycler 3 | . . 3 Swarmer 11 | . 9 2 Grunt 13 | . 8 5 Sentry 6 | . . 6 Best Kill Streak 4 | . 4 3 Combat Bots Only 4 | . 4 3 Max Kills in Single Turn 2 | . 2 1 Gunslinging 1 | . 1 . Exploded . | . . . Melee 1 | . . 1 Uniques/NPCs Destroyed . | . . . Combat | -11 -10 -9 -------- Run | Yrd Mat Mat Hostile Shots Fired 175 | . 94 81 Missed 53 | . 27 26 Damage Taken 1397 | . 668 729 Core 350 | . 218 132 Absorbed by Shields . | . . . Core Remaining (%) 56 | 100 12 . Volleys Fired 70 | . 40 30 Largest 2 | . 2 2 Hottest 100 | . 100 60 Shots Fired 138 | . 80 58 Gun 138 | . 80 58 Cannon . | . . . Launcher . | . . . Special . | . . . Kinetic 75 | . 30 45 Thermal 42 | . 42 . Explosive . | . . . Electromagnetic 21 | . 8 13 Robot Hit Streak 12 | . 12 10 Robot Miss Streak 4 | . 4 3 Penetration Max . | . . . Secondary Targets 5 | . 4 1 Max Gunslinging Chain 1 | . 1 1 Shots Hit Robots 121 | . 50 71 Core Hits 50 | . 26 24 Critical Kills . | . . . Critical Parts Destroyed 6 | . 1 5 Critical Strikes 7 | . 2 5 Burn 1 | . 1 . Destroy 2 | . 1 1 Smash 4 | . . 4 Melee Attacks 27 | . . 27 Impact 27 | . . 27 Slashing . | . . . Piercing . | . . . Sneak Attacks 6 | . . 6 Combat Hostiles . | . . . Follow-up Attacks . | . . . Damage Inflicted 2232 | . 633 1599 Guns 1092 | . 599 493 Cannons . | . . . Explosions . | . . . Melee 1096 | . . 1096 Ramming 44 | . 34 10 Kinetic 525 | . 188 337 Thermal 341 | . 341 . Explosive . | . . . Electromagnetic 226 | . 70 156 Impact 1096 | . . 1096 Slashing . | . . . Piercing . | . . . Highest Corruption 2 | . . 2 Average Corruption 2 | . . 2 Corruption Purged . | . . . Corruption Blocked . | . . . Overload Shots . | . . . Overflow Damage 400 | . . 400 Projectiles . | . . . Explosions . | . . . Melee 400 | . . 400 Knockbacks 3 | . . 3 Impact 3 | . . 3 Kinetic . | . . . Secondary . | . . . Self-Inflicted Damage 11 | . 11 . Shots . | . . . Rammed 7 | . 4 3 Targets Rammed 12 | . 9 3 Kicked 5 | . 5 . Crushed . | . . . Highest Temperature 204 | . 204 61 Average Temperature 47 | . 58 24 Received Heat Transfer 408 | . 174 234 Siege Activations . | . . . Robots Corrupted . | . . . Combat Hostiles . | . . . Parts Fried 8 | . . 8 Impact Corruptions 17 | . . 17 Robots Melted . | . . . Combat Hostiles . | . . . Parts Melted 3 | . 3 . Heat Transferred 979 | . 979 . Parts Sabotaged . | . . . Parts Stolen . | . . . Parts Stripped . | . . . Power Chain Reactions . | . . . Alert | -11 -10 -9 ------- Run | Yrd Mat Mat Peak Influence 308 | . 278 308 Initial 93 | . . 93 Average 159 | . 154 173 Maximum Alert Level 1 | . 1 1 Low Security (%) 59 | 100 57 60 Level 1 40 | . 42 39 Level 2 . | . . . Level 3 . | . . . Level 4 . | . . . Level 5 . | . . . High Security . | . . . Max Security . | . . . Squads Dispatched 5 | . 4 1 Investigation 2 | . 2 . Extermination . | . . . Reinforcement 3 | . 2 1 Assault . | . . . Garrison . | . . . Intercept . | . . . Searches Triggered . | . . . Construction Impeded . | . . . Haulers Reinforced . | . . . Active Scanning Responses . | . . . Cargo Convoy Interrupts . | . . . Stealth | -11 -10 -9 --------- Run | Yrd Mat Mat Distress Signals 5 | . 3 2 Communications Jammed . | . . . Distress Signals . | . . . Times Spotted 60 | . 30 30 Peak Tracking Total 7 | . 7 5 Tactical Retreats 4 | . 3 1 Traps | -11 -10 -9 ------- Run | Yrd Mat Mat Traps Triggered 4 | . 3 1 Indirectly . | . . . Trap Hack Attempts . | . . . Triggered . | . . . Disarmed . | . . . Reprogrammed . | . . . Reused . | . . . Traps Extracted . | . . . Installed . | . . . Triggered . | . . . Machines | -11 -10 -9 ---------- Run | Yrd Mat Mat Machines Disabled . | . . . Max in Single Turn . | . . . Machines Repaired . | . . . Machines Dismantled . | . . . Machines Sabotaged . | . . . Overloaded Fab Kills . | . . . Hacking | -11 -10 -9 --------- Run | Yrd Mat Mat Machines Accessed 6 | . 3 3 Terminals 4 | . 2 2 Fabricators . | . . . Repair Stations . | . . . Recycling Units 1 | . 1 . Scanalyzers 1 | . . 1 Garrison Access . | . . . Total Hacks 20 | . 8 12 Successful 15 | . 8 7 Failed 5 | . . 5 Catastrophic 1 | . . 1 Database Lockouts . | . . . Manual 11 | . 3 8 Terminals 15 | . 7 8 Fabricators . | . . . Repair Stations . | . . . Recycling Units 1 | . 1 . Scanalyzers 4 | . . 4 Garrison Access . | . . . Terminal Hacks 7 | . 5 2 Record 3 | . 3 . Alert Level 1 | . . 1 Unreport Threat 1 | . . 1 Locate Traps 1 | . 1 . Zone Layout 1 | . 1 . Fabricator Hacks . | . . . Repair Station Hacks . | . . . Recycling Unit Hacks . | . . . Scanalyzer 4 | . . 4 Insert Component 2 | . . 2 Analyze 2 | . . 2 Garrison Access Hacks . | . . . Unauthorized Hacks 4 | . 3 1 Terminals 3 | . 2 1 Botnet 3 | . 2 1 Fabricators . | . . . Repair Stations . | . . . Recycling Units 1 | . 1 . Reject 1 | . 1 . Scanalyzers . | . . . Garrison Access . | . . . Data Cores Recovered . | . . . Used . | . . . Hacking Detections 5 | . 2 3 Full Trace Events . | . . . Feedback Events . | . . . Feedback Blocked . | . . . Robot Schematics Acquired . | . . . Robots Built . | . . . Authchips . | . . . Time . | . . . Total Robot Build Rating . | . . . Part Schematics Acquired 1 | . . 1 Parts Built . | . . . Authchips . | . . . Time . | . . . Total Part Build Rating . | . . . Parts Repaired . | . . . Time . | . . . Parts Recycled . | . . . Recycled Matter . | . . . Retrieved Matter . | . . . Retrieved Components . | . . . Parts Scanalyzed 2 | . . 2 Part Schematics Acquired 1 | . . 1 Parts Damaged . | . . . Bothacking | -11 -10 -9 ------------ Run | Yrd Mat Mat Used RIF Installer . | . . . Robots Hacked . | . . . Non-combat . | . . . Combat . | . . . Robot Hacks Applied . | . . . Relay Couplers Released . | . . . Fabnet Peak Effective % . | . . . Robots Rewired . | . . . Allies Hacked . | . . . Hacks Repelled . | . . . Allies | -11 -10 -9 -------- Run | Yrd Mat Mat Total Allies . | . . . Largest Group . | . . . Highest-Rated Group . | . . . Highest-Rated Ally . | . . . Total Orders . | . . . Ally Attacks . | . . . Total Damage . | . . . Kills . | . . . Allies Corrupted . | . . . Allies Melted . | . . . Intel | -11 -10 -9 ------- Run | Yrd Mat Mat Robot Analysis Total . | . . . Derelict Logs Recovered . | . . . Drone Launches . | . . . Drone Recoveries . | . . . Exploration | -11 -10 -9 ------------- Run | Yrd Mat Mat Turns Passed 2195 | 62 1021 1112 Spaces Moved 1295 | 49 728 518 Core 3 | 3 . . Treads 547 | . 29 518 Legs 243 | . 243 . Wheels 502 | 46 456 . Hover . | . . . Flight . | . . . Fastest Speed 50 | 50 100 160 Average Speed 129 | 96 109 161 Slowest Speed 240 | 100 160 240 Overloaded Moves . | . . . Propulsion Burnouts . | . . . Robots Hopped . | . . . Cave-ins Triggered . | . . . Exploration Rate (%) 46 | 3 91 46 Regions Visited 2 Branch Regions . Pre-discovered Areas . | . . . Known Exits Taken . | . . . Unknown Exits Taken 2 | 1 1 . Scrap Searched . | . . . Spaces Dug . | . . . Terrain Destroyed . | . . . Melee . | . . . Projectile . | . . . AOE . | . . . Terrain Rammed . | . . . Walls Destroyed . | . . . Machines Disabled . | . . . Actions | -11 -10 -9 --------- Run | Yrd Mat Mat Total 1625 | 61 878 686 Wait 153 | . 70 83 Move 1293 | 48 727 518 Hop . | . . . Pick Up 21 | 6 8 7 Fast Attach 12 | 6 3 3 Attach 9 | . 5 4 Detach 2 | 1 . 1 Swap 8 | . 5 3 Drop 18 | . 11 7 Fire 70 | . 40 30 Melee 27 | . . 27 Ram 4 | . 4 . Kick 5 | . 5 . Crush 3 | . . 3 Escape Stasis . | . . . Rewire . | . . . Trap . | . . . Miscellaneous . | . . . Route ------- -11/Scrapyard -10/Materials (discovered 4 exits: *Mat x3 / [*Min]) -9/Materials (discovered 1 exit: [*Mat]) History --------- Turn | Location | Event 30 | -11/Scrapyard | Discovered new exit (range 16) 63 | -11/Scrapyard | Entered Materials 172 | -10/Materials | Discovered new exit (range 16) 249 | -10/Materials | Discovered new exit (range 16) 307 | -10/Materials | Build established: Mutant 494 | -10/Materials | Discovered new exit (range 7) 617 | -10/Materials | Core integrity fell below 50% 984 | -10/Materials | Core integrity fell below 20% 1022 | -10/Materials | Discovered new exit (range 16) 1084 | -10/Materials | Entered another Materials area 1084 | -9/Materials | Evolved 2 slots: Utility x1, Weapon x1 1377 | -9/Materials | Build established: Skirmisher 1698 | -9/Materials | Build established: Tank 1791 | -9/Materials | Discovered new exit (range 10) 2003 | -9/Materials | Build established: Mutant 2196 | -9/Materials | Self-destructed Last Messages --------------- Destroyed Flight Unit. S-10 Pest system corrupted by crushing effect. Med. Armor Plating destroyed. S-10 Pest system terminally corrupted. Destroyed Flight Unit. S-10 Pest system corrupted by crushing effect. R-06 Scavenger collects Corrupted Med. Storage Unit. S-10 Pest IFF system glitched. R-06 Scavenger collects Wheel. Flight Unit fried. Lgt. Ion Engine fried. S-10 Pest destroyed. K-01 Serf collects debris. Triggered Shock Trap. The floor emits a surge of raw power. System corrupted (+2). K-01 Serf collects debris. U-05 Engineer lays Concrete. Map ----- +----------------------------------------------------+ | ?????# ## #????# # """ # # """ | | ?????# |![ ## ##???###+##### # # """ | | ?????# |![ # #####[ #??# """ # # """ | | ?????# |[ + #### """ # # | | ###### # [*%+ """%+%=*/ | | # # ##### #### % #!! # | | "" # ## ##?####+############### %!# | | "" # ?# #??# # ##!% ###### | | "" #+######### #??# """ # """ # % %##### | | "" ! + #### """ # """ # [*= | | "" # + """ # """ + T | | "" ###+#######+##### # # | | "" # ## ??# """ # """ # ##### | | # ## ## """ # """ ## ##???? | | ###### ## ## """ # """ ## #????? | | ?????# ## ## # ## #????? | | ?????# ## ##################### #????? | | ?????# !! ## #???????????????????# #????? | | ?????# !!! ## #???????????????????# #????? | | ?????# !!!! ## #???????????????????# #????? | | ?????#=!![% ## #???????????????????#%###????? | | ?????###+###### [ #?########?? ?????# #??????? | | ???????#%[* # #?# # """"""" ## #??????? | | ???????#""!= # #?#"" # """"""" ## #??????? | | ???????#"T! ] #######?#"T !!# """"""" ## #??????? | | ???????#""%!]=#???????#""@ ! # """"""" ## #??????? | | ???????# * !] + ??????# # """"""" ## #??????? | | ???????#== ###?????# # ## #??????? | | ###########+#############+########/###### ##?????? | | # #?????? | | # ####### | | # | | # ################/####### ## ############### | | # #????????????? ???????# ## #?????????????? | | # #????????????#?????????# ##! !#?????????????? | | # #??????????????????????# ###!!!!##?????????????? | | # #??????????????????????# #?######??????????????? | | # #??????????????????????# #?????????????????????? | | # #??????????????????????# #?????????????????????? | | # #??????????????????????? #?????????????????????? | | # #??????????????????????? #?????????????????????? | | # #??????????????????????? ??????????????????????? | | # #??????????????????????? ??????????????????????? | | # #??????????????????????? ??????????????????????? | | # #?##########???????????? ??????????????????????? | | # ## #???????????????????????????????????? | | # ## #???????????????????????????????????? | | # ## ! #???????????????????????????????????? | | # ## #???????????????????????????????????? | | # ## """ """ #???????????????????????????????????? | +----------------------------------------------------+ Best States ------------- Heat Dissipation 28 Energy Generation 14 Energy Capacity 280 Matter Stores 300 Matter Capacity 300 Sight Range 16 Robot Scan Range 14 Terrain Scan Density 10 Armor Coverage 225 Evasion (%) 55 Recoil Reduction 2 Item Schematics ----------------- Lgt. Treads | -9/Materials | Scanalyzed Robot Schematics ------------------ None Fabricated ------------ Nothing Alien Tech Used ----------------- None Achievements -------------- None Challenges ------------ None Game ------ Seed TachyonWeldingScanner Manual? 0 Play Time 00:18:57 Cumulative 36.0 hours Start 2024.03.04 @ 10:36:05 End 2024.03.06 @ 15:04:28 Sessions 3 Manual Loads 0 Difficulty Rogue Special Mode None Game No. 57 Rogue 56 Adventurer 1 Explorer 0 Win Type - Total 0 Types 0/0/0/0/0/0/0/0/0 Lore% 22 Gallery% 26 Achievement% 29 Wizard Run 0 Options --------- Layout 1 ASCII 0 Keyboard 0 Movement Numpad Keybinds 0 Fullscreen 1 Font 24/Smallcaps Map View 50x35 Zoom Use 0% Tactical HUD 0 Map Filters NONE Filters NONE Steam 1 RUN: b933fcda-36f8-4d31-a7e9-377e7f018801